fUST/lending_fUST_20250623
["ID","MTS","AMOUNT","RATE_DAILY","PERIOD"]
[367087031,1750653058563,-198.0,0.00022246,2]
[367087032,1750653058573,-198.0,0.00022246,2]
[367087033,1750653058582,-198.0,0.00022246,2]
[367087034,1750653058591,-198.0,0.00022246,2]
[367087035,1750653058601,-151.0,0.00022246,2]
[367087036,1750653058610,-198.0,0.00022246,2]
[367087037,1750653058619,-198.0,0.00022246,2]
[367087038,1750653058629,-151.0,0.00022246,2]
[367087039,1750653058638,-500.0,0.00022246,2]
[367087040,1750653058648,-198.0,0.00022246,2]
[367087041,1750653058657,-151.0,0.00022246,7]
[367087042,1750653058666,-590.203614,0.00022246,7]
[367087043,1750653058676,-590.203614,0.00022246,7]
[367087044,1750653058685,-151.0,0.00022273,2]
[367087045,1750653058694,-151.0,0.00022273,2]
[367087046,1750653058703,-198.0,0.00022273,2]
[367087047,1750653058716,-500.0,0.00022273,2]
[367087048,1750653058725,-500.0,0.00022273,2]
[367087049,1750653058734,-151.0,0.00022273,2]
[367087050,1750653058743,-151.0,0.00022273,2]
[367087051,1750653058752,-151.0,0.00022273,2]
[367087052,1750653058762,-198.0,0.00022273,2]
[367087053,1750653058771,-500.0,0.00022273,2]
[367087054,1750653058780,-151.0,0.00022301,2]
[367087055,1750653058791,-151.0,0.00022301,2]
[367087056,1750653058801,-500.0,0.00022301,2]
[367087057,1750653058810,-568.86168017,0.00022301,2]
[367087058,1750653058819,-151.0,0.00022301,2]
[367087059,1750653058829,-151.0,0.00022301,2]
[367087060,1750653058839,-151.0,0.00022301,2]
[367087061,1750653058848,-151.0,0.00022301,2]
[367087062,1750653058858,-245.0,0.00022328,2]
[367087063,1750653058867,-245.0,0.00022328,2]
[367087064,1750653058876,-500.0,0.00022328,2]
[367087065,1750653058885,-245.0,0.00022328,2]
[367087066,1750653058895,-245.0,0.00022328,2]
[367087067,1750653058904,-245.0,0.00022328,2]
[367087068,1750653058913,-500.0,0.00022355,2]
[367087069,1750653058923,-4052.57338617,0.00022365,2]
[367087070,1750653058931,-500.0,0.00022383,2]
[367087071,1750653058940,-159.1393301,0.00022384,2]
[367087072,1750653058950,-307.7019548,0.00022384,2]
[367087073,1750653058959,-177.3437282,0.00022384,2]
[367087074,1750653058968,-348.5092285,0.00022384,2]
[367087075,1750653058977,-574.7458077,0.00022384,2]
[367087076,1750653058986,-177.3437282,0.00022384,2]
[367087077,1750653058995,-159.1393301,0.00022384,2]
[367087078,1750653059004,-574.7458077,0.00022384,2]
[367087079,1750653059013,-177.3437282,0.00022384,2]
[367087080,1750653059022,-574.7458077,0.00022384,2]
[367087081,1750653059031,-159.1393301,0.00022384,2]
[367087082,1750653059040,-159.1393301,0.00022384,2]
[367087083,1750653059050,-2000.0,0.000224,3]
[367087084,1750653059059,-500.0,0.0002241,2]
[367087085,1750653059068,-500.0,0.00022438,2]
[367087086,1750653059077,-153.73254125,0.00022456,2]
[367087087,1750653059086,-500.0,0.00022465,2]
[367087088,1750653059095,-460.0,0.00022465,2]
[367087089,1750653059104,-460.0,0.00022465,2]
[367087090,1750653059113,-460.53138506,0.00022465,2]
[367087091,1750653059123,-602.87,0.00022465,2]
[367087092,1750653059132,-460.0,0.00022465,2]
[367087093,1750653059141,-370.13756208,0.00022465,2]
[367087094,1750653059150,-460.0,0.00022465,2]
[367087095,1750653059159,-460.0,0.00022465,2]
[367087096,1750653059168,-460.0,0.00022465,2]
[367087097,1750653059177,-460.0,0.00022465,2]
[367087098,1750653059186,-460.0,0.00022465,2]
[367087099,1750653059195,-460.0,0.00022465,2]
[367087100,1750653059204,-460.0,0.00022465,2]
[367087101,1750653059213,-460.0,0.00022465,2]
[367087102,1750653059222,-1044.13,0.00022465,2]
[367087103,1750653059231,-462.32454413,0.00022465,2]
[367087104,1750653059240,-460.0,0.00022465,2]
[367087105,1750653059249,-460.0,0.00022465,2]
[367087106,1750653059258,-460.0,0.00022465,2]
[367087107,1750653059267,-460.0,0.00022465,2]
[367087108,1750653059276,-460.0,0.00022465,2]
[367087109,1750653059286,-855.45,0.00022465,2]
[367087110,1750653059295,-460.0,0.00022465,2]
[367087111,1750653059303,-778.07,0.00022465,2]
[367087112,1750653059312,-460.0,0.00022465,2]
[367087113,1750653059321,-460.0,0.00022465,2]
[367087114,1750653059330,-487.66,0.00022465,2]
[367087115,1750653059339,-487.66,0.00022465,2]
[367087116,1750653059348,-460.0,0.00022465,2]
[367087117,1750653059357,-460.0,0.00022465,2]
[367087118,1750653059366,-460.0,0.00022465,2]
[367087119,1750653059375,-460.0,0.00022465,2]
[367087120,1750653059384,-460.0,0.00022465,2]
[367087121,1750653059393,-460.0,0.00022465,2]
[367087122,1750653059403,-460.0,0.00022465,2]
[367087123,1750653059412,-460.0,0.00022465,2]
[367087124,1750653059421,-488.7,0.00022465,2]
[367087125,1750653059430,-460.0,0.00022465,2]
[367087126,1750653059439,-460.0,0.00022465,2]
[367087127,1750653059448,-460.0,0.00022465,2]
[367087128,1750653059457,-534.02,0.00022465,2]
[367087129,1750653059466,-460.0,0.00022465,2]
[367087130,1750653059476,-158.18036596,0.00022465,2]
[367087131,1750653059485,-460.0,0.00022465,2]
[367087132,1750653059494,-460.0,0.00022465,2]
[367087133,1750653059504,-460.0,0.00022465,2]
[367087134,1750653059513,-460.0,0.00022465,2]
[367087135,1750653059522,-460.0,0.00022465,2]
[367087136,1750653059531,-523.98638521,0.00022465,2]
[367087137,1750653059540,-897.01,0.00022465,2]
[367087138,1750653059549,-878.45,0.00022465,2]
[367087139,1750653059558,-460.0,0.00022465,2]
[367087140,1750653059568,-460.78246173,0.00022465,2]
[367087141,1750653059577,-460.0,0.00022465,2]
[367087142,1750653059586,-460.0,0.00022465,2]
[367087143,1750653059595,-460.0,0.00022465,2]
[367087144,1750653059604,-460.0,0.00022465,2]
[367087145,1750653059614,-460.0,0.00022465,2]
[367087146,1750653059623,-460.0,0.00022465,2]
[367087147,1750653059633,-460.0,0.00022465,2]
[367087148,1750653059643,-460.0,0.00022465,2]
[367087149,1750653059654,-460.0,0.00022465,2]
[367087150,1750653059663,-460.0,0.00022465,2]
[367087151,1750653059673,-460.0,0.00022465,2]
[367087152,1750653059682,-460.0,0.00022465,2]
[367087153,1750653059692,-460.0,0.00022465,2]
[367087154,1750653059703,-1859.93,0.00022465,2]
[367087155,1750653059714,-460.0,0.00022465,2]
[367087156,1750653059725,-509.83739879,0.00022465,2]
[367087157,1750653059735,-460.0,0.00022465,2]
[367087158,1750653059744,-288.848168,0.00022465,7]
[367087159,1750653059753,-288.848168,0.00022465,7]
[367087160,1750653059762,-288.848168,0.00022465,7]
[367087161,1750653059771,-460.0,0.00022465,2]
[367087162,1750653059780,-288.848168,0.00022465,7]
[367087163,1750653059792,-288.848168,0.00022465,7]
[367087164,1750653059802,-288.848168,0.00022465,7]
[367087165,1750653059813,-460.0,0.00022465,2]
[367087166,1750653059822,-460.0,0.00022465,2]
[367087167,1750653059832,-686.91,0.00022465,2]
[367087168,1750653059841,-460.0,0.00022465,2]
[367087169,1750653059851,-1319.96,0.00022465,2]
[367087170,1750653059861,-211.62673082,0.00022465,2]
[367087171,1750653059870,-460.0,0.00022465,2]
[367087172,1750653059879,-460.0,0.00022465,2]
[367087173,1750653059888,-460.0,0.00022465,2]
[367087174,1750653059897,-460.0,0.00022465,2]
[367087175,1750653059906,-460.0,0.00022465,2]
[367087176,1750653059915,-460.0,0.00022465,2]
[367087177,1750653059925,-460.0,0.00022465,2]
[367087178,1750653059934,-460.0,0.00022465,2]
[367087179,1750653059943,-460.0,0.00022465,2]
[367087180,1750653059952,-522.95,0.00022465,2]
[367087181,1750653059961,-460.0,0.00022465,2]
[367087182,1750653059970,-461.43880711,0.00022465,2]
[367087183,1750653059980,-460.0,0.00022465,2]
[367087184,1750653059989,-411.34246556,0.00022465,2]
[367087185,1750653059998,-531.63,0.00022465,2]
[367087186,1750653060008,-460.0,0.00022465,2]
[367087187,1750653060017,-460.0,0.00022465,2]
[367087188,1750653060026,-460.0,0.00022465,2]
[367087189,1750653060036,-460.0,0.00022465,2]
[367087190,1750653060046,-1483.84,0.00022465,2]
[367087191,1750653060055,-575.46,0.00022465,2]
[367087192,1750653060064,-460.0,0.00022465,2]
[367087193,1750653060074,-460.0,0.00022465,2]
[367087194,1750653060083,-3498.23,0.00022465,2]
[367087195,1750653060093,-513.0,0.00022465,2]
[367087196,1750653060102,-331.09688267,0.00022465,2]
[367087197,1750653060111,-508.84,0.00022465,2]
[367087198,1750653060121,-460.0,0.00022465,2]
[367087199,1750653060130,-738.61,0.00022465,2]
[367087200,1750653060139,-460.0,0.00022465,2]
[367087201,1750653060149,-876.49,0.00022465,2]
[367087202,1750653060159,-1310.47,0.00022465,2]
[367087203,1750653060169,-1165.89,0.00022465,2]
[367087204,1750653060178,-460.0,0.00022465,2]
[367087205,1750653060188,-796.43,0.00022465,2]
[367087206,1750653060197,-892.92,0.00022465,2]
[367087207,1750653060207,-460.0,0.00022465,2]
[367087208,1750653060219,-460.0,0.00022465,2]
[367087209,1750653060229,-460.0,0.00022465,2]
[367087210,1750653060238,-460.0,0.00022465,2]
[367087211,1750653060247,-334.16701344,0.00022465,2]
[367087212,1750653060256,-460.0,0.00022465,2]
[367087213,1750653060265,-827.17,0.00022465,2]
[367087214,1750653060274,-557.78209572,0.00022465,2]
[367087215,1750653060284,-243.03843308,0.00022465,2]
[367087216,1750653060293,-460.0,0.00022465,2]
[367087217,1750653060302,-460.0,0.00022465,2]
[367087218,1750653060311,-624.43,0.00022465,2]
[367087219,1750653060320,-460.0,0.00022465,2]
[367087220,1750653060330,-798.68,0.00022465,2]
[367087221,1750653060339,-512.45,0.00022465,2]
[367087222,1750653060347,-460.0,0.00022465,2]
[367087223,1750653060357,-460.0,0.00022465,2]
[367087224,1750653060367,-460.0,0.00022465,2]
[367087225,1750653060376,-460.0,0.00022465,2]
[367087226,1750653060539,-460.0,0.00022465,2]
[367087227,1750653060548,-460.0,0.00022465,2]
[367087228,1750653060557,-460.0,0.00022465,2]
[367087229,1750653060566,-460.0,0.00022465,2]
[367087230,1750653060575,-507.23,0.00022465,2]
[367087231,1750653060584,-460.0,0.00022465,2]
[367087232,1750653060593,-460.0,0.00022465,2]
[367087233,1750653060602,-460.0,0.00022465,2]
[367087234,1750653060611,-460.0,0.00022465,2]
[367087235,1750653060620,-460.0,0.00022465,2]
[367087236,1750653060629,-460.0,0.00022465,2]
[367087237,1750653060639,-762.59,0.00022465,2]
[367087238,1750653060648,-460.0,0.00022465,2]
[367087239,1750653060657,-473.12,0.00022465,2]
[367087240,1750653060666,-460.0,0.00022465,2]
[367087241,1750653060674,-460.0,0.00022465,2]
[367087242,1750653060683,-460.0,0.00022465,2]
[367087243,1750653060692,-500.0,0.00022465,2]
[367087244,1750653060701,-2016.55,0.00022465,2]
[367087245,1750653060711,-460.0,0.00022465,2]
[367087246,1750653060721,-460.0,0.00022465,2]
[367087247,1750653060734,-968.87,0.00022465,2]
[367087248,1750653060744,-500.0,0.00022465,2]
[367087249,1750653060753,-460.0,0.00022465,2]
[367087250,1750653060763,-460.0,0.00022465,2]
[367087251,1750653060774,-460.0,0.00022465,2]
[367087252,1750653060783,-460.0,0.00022465,2]
[367087253,1750653060792,-1874.56,0.00022465,2]
[367087254,1750653060804,-460.0,0.00022465,2]
[367087255,1750653060813,-460.0,0.00022465,2]
[367087256,1750653060823,-460.0,0.00022465,2]
[367087257,1750653060832,-546.67,0.00022465,2]
[367087258,1750653060843,-460.0,0.00022465,2]
[367087259,1750653060852,-460.0,0.00022465,2]
[367087260,1750653060862,-460.0,0.00022465,2]
[367087261,1750653060872,-531.76,0.00022465,2]
[367087262,1750653060881,-460.0,0.00022465,2]
[367087263,1750653060891,-460.0,0.00022465,2]
[367087264,1750653060900,-976.27,0.00022465,2]
[367087265,1750653060911,-563.72,0.00022465,2]
[367087266,1750653060920,-460.0,0.00022465,2]
[367087267,1750653060930,-460.0,0.00022465,2]
[367087268,1750653060939,-460.0,0.00022465,2]
[367087269,1750653060948,-1323.36,0.00022465,2]
[367087270,1750653060958,-460.0,0.00022465,2]
[367087271,1750653060967,-460.0,0.00022465,2]
[367087272,1750653060976,-460.0,0.00022465,2]
[367087273,1750653060986,-891.24,0.00022465,2]
[367087274,1750653060995,-1240.95,0.00022465,2]
[367087275,1750653061005,-460.0,0.00022465,2]
[367087276,1750653061015,-460.0,0.00022465,2]
[367087277,1750653061024,-460.0,0.00022465,2]
[367087278,1750653061034,-460.0,0.00022465,2]
[367087279,1750653061043,-1276.84,0.00022465,2]
[367087280,1750653061054,-460.0,0.00022465,2]
[367087281,1750653061063,-460.0,0.00022465,2]
[367087282,1750653061073,-460.0,0.00022465,2]
[367087283,1750653061083,-460.0,0.00022465,2]
[367087284,1750653061092,-460.0,0.00022465,2]
[367087285,1750653061102,-772.74,0.00022465,2]
[367087286,1750653061112,-460.0,0.00022465,2]
[367087287,1750653061122,-1067.55,0.00022465,2]
[367087288,1750653061131,-507.23,0.00022465,2]
[367087289,1750653061141,-460.0,0.00022465,2]
[367087290,1750653061150,-460.0,0.00022465,2]
[367087291,1750653061159,-460.0,0.00022465,2]
[367087292,1750653061168,-460.0,0.00022465,2]
[367087293,1750653061178,-460.0,0.00022465,2]
[367087294,1750653061187,-595.75,0.00022465,2]
[367087295,1750653061197,-1586.08,0.00022465,2]
[367087296,1750653061206,-460.0,0.00022465,2]
[367087297,1750653061215,-460.0,0.00022465,2]
[367087298,1750653061224,-537.69,0.00022465,2]
[367087299,1750653061233,-682.13,0.00022465,2]
[367087300,1750653061242,-460.0,0.00022465,2]
[367087301,1750653061251,-460.0,0.00022465,2]
[367087302,1750653061261,-460.0,0.00022465,2]
[367087303,1750653061270,-460.0,0.00022465,2]
[367087304,1750653061279,-1442.25,0.00022465,2]
[367087305,1750653061288,-460.0,0.00022465,2]
[367087306,1750653061297,-460.0,0.00022465,2]
[367087307,1750653061307,-886.71,0.00022465,2]
[367087308,1750653061316,-460.0,0.00022465,2]
[367087309,1750653061325,-460.0,0.00022465,2]
[367087310,1750653061334,-440.32705365,0.00022465,2]
[367087311,1750653061343,-460.0,0.00022465,2]
[367087312,1750653061353,-460.0,0.00022465,2]
[367087313,1750653061362,-864.43,0.00022465,2]
[367087314,1750653061371,-460.0,0.00022465,2]
[367087315,1750653061381,-460.0,0.00022465,2]
[367087316,1750653061390,-460.0,0.00022465,2]
[367087317,1750653061399,-460.0,0.00022465,2]
[367087318,1750653061408,-485.73,0.00022465,2]
[367087319,1750653061418,-488.93,0.00022465,2]
[367087320,1750653061427,-460.0,0.00022465,2]
[367087321,1750653061437,-460.0,0.00022465,2]
[367087322,1750653061446,-460.0,0.00022465,2]
[367087323,1750653061455,-2181.34,0.00022465,2]
[367087324,1750653061464,-557.88,0.00022465,2]
[367087325,1750653061473,-460.0,0.00022465,2]
[367087326,1750653061483,-677.44,0.00022465,2]
[367087327,1750653061492,-460.0,0.00022465,2]
[367087328,1750653061501,-460.0,0.00022465,2]
[367087329,1750653061510,-515.35549003,0.00022465,2]
[367087330,1750653061519,-460.0,0.00022465,2]
[367087331,1750653061529,-460.0,0.00022465,2]
[367087332,1750653061538,-460.0,0.00022465,2]
[367087333,1750653061548,-805.25,0.00022465,2]
[367087334,1750653061558,-466.05,0.00022465,2]
[367087335,1750653061568,-460.0,0.00022465,2]
[367087336,1750653061577,-460.0,0.00022465,2]
[367087337,1750653061586,-460.0,0.00022465,2]
[367087338,1750653061595,-455.51803982,0.00022465,2]
[367087339,1750653061604,-207.45111952,0.00022465,2]
[367087340,1750653061613,-538.38,0.00022465,2]
[367087341,1750653061622,-285.71131,0.00022465,7]
[367087342,1750653061631,-367.43415794,0.00022465,2]
[367087343,1750653061640,-512.28834041,0.00022465,2]
[367087344,1750653061649,-460.0,0.00022465,2]
[367087345,1750653061659,-460.0,0.00022465,2]
[367087346,1750653061668,-1586.45,0.00022465,2]
[367087347,1750653061678,-460.0,0.00022465,2]
[367087348,1750653061688,-460.0,0.00022465,2]
[367087349,1750653061699,-433.2177332,0.00022465,2]
[367087350,1750653061708,-460.0,0.00022465,2]
[367087351,1750653061717,-612.09399453,0.00022465,2]
[367087352,1750653061731,-460.0,0.00022465,2]
[367087353,1750653061741,-1074.53,0.00022465,2]
[367087354,1750653061751,-460.0,0.00022465,2]
[367087355,1750653061762,-460.0,0.00022465,2]
[367087356,1750653061773,-460.0,0.00022465,2]
[367087357,1750653061782,-1994.63,0.00022465,2]
[367087358,1750653061792,-460.0,0.00022465,2]
[367087359,1750653061804,-151.0,0.00022465,7]
[367087360,1750653061814,-151.0,0.00022465,7]
[367087361,1750653061823,-151.0,0.00022465,7]
[367087362,1750653061832,-460.0,0.00022465,2]
[367087363,1750653061841,-460.0,0.00022465,2]
[367087364,1750653061851,-198.633695,0.00022465,7]
[367087365,1750653061860,-546.18,0.00022465,2]
[367087366,1750653061869,-460.0,0.00022465,2]
[367087367,1750653061878,-460.0,0.00022465,2]
[367087368,1750653061888,-837.71,0.00022465,2]
[367087369,1750653061897,-460.0,0.00022465,2]
[367087370,1750653061906,-460.0,0.00022465,2]
[367087371,1750653061915,-460.0,0.00022465,2]
[367087372,1750653061925,-460.0,0.00022465,2]
[367087373,1750653061934,-460.0,0.00022465,2]
[367087374,1750653061943,-460.0,0.00022465,2]
[367087375,1750653061952,-599.88,0.00022465,2]
[367087376,1750653061963,-460.0,0.00022465,2]
[367087377,1750653061972,-1385.94,0.00022465,2]
[367087378,1750653061982,-460.0,0.00022465,2]
[367087379,1750653061991,-539.68,0.00022465,2]
[367087380,1750653062000,-748.28,0.00022465,2]
[367087381,1750653062010,-460.0,0.00022465,2]
[367087382,1750653062019,-460.0,0.00022465,2]
[367087383,1750653062028,-460.0,0.00022465,2]
[367087384,1750653062038,-460.0,0.00022465,2]
[367087385,1750653062047,-460.0,0.00022465,2]
[367087386,1750653062057,-460.0,0.00022465,2]
[367087387,1750653062066,-460.0,0.00022465,2]
[367087388,1750653062076,-460.0,0.00022465,2]
[367087389,1750653062085,-460.0,0.00022465,2]
[367087390,1750653062094,-460.0,0.00022465,2]
[367087391,1750653062104,-460.0,0.00022465,2]
[367087392,1750653062113,-514.01,0.00022465,2]
[367087393,1750653062123,-621.15,0.00022465,2]
[367087394,1750653062131,-460.0,0.00022465,2]
[367087395,1750653062140,-460.0,0.00022465,2]
[367087396,1750653062149,-460.0,0.00022465,2]
[367087397,1750653062158,-1107.93,0.00022465,2]
[367087398,1750653062168,-460.0,0.00022465,2]
[367087399,1750653062177,-601.63883088,0.00022465,2]
[367087400,1750653062187,-478.41,0.00022465,2]
[367087401,1750653062196,-1117.76,0.00022465,2]
[367087402,1750653062205,-460.0,0.00022465,2]
[367087403,1750653062215,-734.2,0.00022465,2]
[367087404,1750653062224,-460.0,0.00022465,2]
[367087405,1750653062233,-460.0,0.00022465,2]
[367087406,1750653062242,-460.0,0.00022465,2]
[367087407,1750653062252,-498.65,0.00022465,2]
[367087408,1750653062260,-460.0,0.00022465,2]
[367087409,1750653062273,-460.0,0.00022465,2]
[367087410,1750653062282,-691.77,0.00022465,2]
[367087411,1750653062293,-460.0,0.00022465,2]
[367087412,1750653062307,-460.0,0.00022465,2]
[367087413,1750653062316,-681.97,0.00022465,2]
[367087414,1750653062326,-3833.61985901,0.00022465,2]
[367087415,1750653062581,-3785.86014099,0.00022465,2]
[367087416,1750653062591,-116.14472281,0.00022465,7]
[367087420,1750653713745,157.936812,0.00013699,2]
[367087422,1750653781614,-263.86888197,0.00020547,2]
[367087424,1750653829294,-165.39116841,0.00020232,2]
[367087426,1750653940096,-255.56907129,0.00020232,2]
[367087427,1750653940120,-114.25180487,0.00020342,2]
[367087428,1750653947074,-36.74819513,0.00020342,2]
[367087429,1750653947094,-596.77364074,0.00020547,2]
[367087430,1750653947115,-157.936812,0.00020548,2]
[367087431,1750653947134,-174.09,0.00020741,2]
[367087432,1750653947154,-300.0,0.0002075,2]
[367087433,1750653947174,-214.80411389,0.0002075,2]
[367087434,1750654030091,-300.0,0.00020749,2]
[367087435,1750654030113,-85.19588611,0.0002075,2]
[367087436,1750654030136,-241.0,0.0002075,2]
[367087437,1750654030157,-1200.0,0.0002075,2]
[367087438,1750654030178,-300.0,0.0002075,2]
[367087439,1750654030200,-4729.24457426,0.00020751,2]
[367087440,1750654053081,-393.77373644,0.00020744,2]
[367087441,1750654053102,-1700.48159409,0.00020751,2]
[367087443,1750654147092,-300.0,0.00020592,2]
[367087444,1750654147112,-10565.1271943,0.00020593,2]
[367087445,1750654152228,-195.23573109,0.0002075,2]
[367087446,1750654152249,-500.0,0.0002075,2]
[367087447,1750654152268,-500.0,0.0002075,2]
[367087448,1750654152289,-500.0,0.0002075,2]
[367087449,1750654152310,-500.0,0.0002075,2]
[367087450,1750654152331,-491.89515968,0.0002075,2]
[367087451,1750654171074,-8.10484032,0.0002075,2]
[367087452,1750654171100,-500.0,0.0002075,2]
[367087453,1750654171121,-500.0,0.0002075,2]
[367087454,1750654171143,-500.0,0.0002075,2]
[367087455,1750654171166,-500.0,0.0002075,2]
[367087456,1750654171187,-500.0,0.0002075,2]
[367087457,1750654171208,-500.0,0.0002075,2]
[367087458,1750654171229,-500.0,0.0002075,2]
[367087459,1750654171251,-500.0,0.0002075,2]
[367087460,1750654171271,-500.0,0.0002075,2]
[367087461,1750654171292,-500.0,0.0002075,2]
[367087462,1750654171312,-500.0,0.0002075,2]
[367087463,1750654171333,-500.0,0.0002075,2]
[367087464,1750654171354,-500.0,0.0002075,2]
[367087465,1750654171374,-500.0,0.0002075,2]
[367087466,1750654171395,-500.0,0.0002075,2]
[367087467,1750654171416,-500.0,0.0002075,2]
[367087468,1750654171651,-500.0,0.0002075,2]
[367087469,1750654171673,-500.0,0.0002075,2]
[367087470,1750654171693,-500.0,0.0002075,2]
[367087471,1750654171714,-500.0,0.0002075,2]
[367087472,1750654171735,-500.0,0.0002075,2]
[367087473,1750654171756,-500.0,0.0002075,2]
[367087474,1750654171777,-500.0,0.0002075,2]
[367087475,1750654171798,-500.0,0.0002075,2]
[367087476,1750654171820,-500.0,0.0002075,2]
[367087477,1750654171840,-243.89172099,0.0002075,2]
[367087478,1750654171860,-239.76866632,0.0002075,2]
[367087479,1750654171881,-500.0,0.0002075,2]
[367087480,1750654171902,-500.0,0.0002075,2]
[367087481,1750654171922,-500.0,0.0002075,2]
[367087482,1750654171942,-500.0,0.0002075,2]
[367087483,1750654171963,-500.0,0.0002075,2]
[367087484,1750654171983,-17727.74985281,0.00020751,2]
[367087485,1750654221338,305.7652642,0.00020378,2]
[367087486,1750654228610,441.12588692,0.00020543,2]
[367087535,1750654232682,-742.52397884,0.00020751,2]
[367087537,1750654232692,-283.9292528,0.00020844,2]
[367087538,1750654232701,-1654.5285402,0.00020935,2]
[367087539,1750654232711,-267.02449777,0.00021142,2]
[367087540,1750654232721,-300.0,0.0002124,2]
[367087541,1750654232731,-300.0,0.0002124,2]
[367087542,1750654232740,-225.34187836,0.0002124,2]
[367087545,1750654232751,-974.65812164,0.0002124,2]
[367087548,1750654232760,-29269.5235721,0.00021241,2]
[367087549,1750654232769,-187.42572195,0.00021242,2]
[367087654,1750654238699,-582.19651848,0.0002124,2]
[367087656,1750654238711,-500.0,0.0002124,2]
[367087658,1750654238722,-500.0,0.0002124,2]
[367087660,1750654238732,-304.87685789,0.0002124,2]
[367087662,1750654238744,-45.52912577,0.00021242,2]
[367087665,1750654238755,-1765.10456512,0.00021368,2]
[367087667,1750654238766,-207.4,0.00021368,2]
[367087669,1750654238777,-500.0,0.00021581,2]
[367087671,1750654238788,-155.3754327,0.00021652,2]
[367087673,1750654238799,-266.06,0.00021692,2]
[367087676,1750654238811,-839.27240374,0.00021817,2]
[367087678,1750654238821,-267.02449771,0.00021887,2]
[367087680,1750654238832,-500.0,0.00021904,2]
[367087681,1750654238843,-500.0,0.00021904,2]
[367087682,1750654238854,-500.0,0.00021904,2]
[367087683,1750654238866,-500.0,0.00021904,2]
[367087684,1750654238877,-500.0,0.00021904,2]
[367087685,1750654238888,-500.0,0.00021904,2]
[367087686,1750654238899,-500.0,0.00021904,2]
[367087687,1750654238910,-515.60947566,0.00021904,2]
[367087688,1750654238921,-500.0,0.00021904,2]
[367087690,1750654238932,-500.0,0.00021904,2]
[367087692,1750654238943,-500.0,0.00021904,2]
[367087695,1750654238954,-500.0,0.00021904,2]
[367087697,1750654238965,-500.0,0.00021904,2]
[367087699,1750654238975,-5000.0,0.00021904,2]
[367087701,1750654238986,-3245.72344545,0.00021904,2]
[367087703,1750654238996,-500.0,0.00021904,2]
[367087706,1750654239007,-500.0,0.00021904,2]
[367087708,1750654239017,-500.0,0.00021904,2]
[367087710,1750654239028,-1287.03,0.00021907,10]
[367087712,1750654239038,-1638.82,0.00021907,10]
[367087714,1750654239048,-1365.69,0.00021907,10]
[367087716,1750654239058,-1138.07,0.00021907,10]
[367087718,1750654239069,-216.10940385,0.00021916,2]
[367087720,1750654239079,-500.0,0.00021916,2]
[367087723,1750654239090,-445.67338225,0.00021916,2]
[367087725,1750654239100,-500.0,0.00021916,2]
[367087727,1750654239113,-500.0,0.00021916,2]
[367087729,1750654239124,-500.0,0.00021916,2]
[367087731,1750654239135,-500.0,0.00021916,2]